bitfinex/quotes_ETHUSD_20250611
["timestamp","ask_amount","ask_price","bid_price","bid_amount"]
[1749633588255,1.03681602,2764.6,2764.5,10.9857395]
[1749633588448,0.1808,2764.6,2764.5,10.9857395]
[1749633588651,1.03701345,2764.6,2764.5,10.9857395]
[1749633588847,1.03701345,2764.6,2764.5,0.981]
[1749633590865,1.58701345,2764.6,2764.5,0.981]
[1749633591030,2.87298948,2764.6,2764.5,0.981]
[1749633591231,5.48660951,2764.6,2764.5,0.981]
[1749633591435,4.41658948,2764.6,2764.5,0.981]
[1749633591651,5.84764349,2764.6,2764.5,0.981]
[1749633592164,4.41658948,2764.6,2764.5,0.981]
[1749633592462,3.86658948,2764.6,2764.5,0.981]
[1749633592765,4.93754212,2764.6,2764.5,0.981]
[1749633592929,3.65156609,2764.6,2764.5,0.981]
[1749633593866,0.85621345,2764.6,2764.5,0.981]
[1749633594464,1.5677,2764.9,2764.5,0.981]
[1749633594631,0.85708568,2764.8,2764.5,0.981]
[1749633594838,0.85708568,2764.7,2764.5,0.981]
[1749633595039,1.03788568,2764.6,2764.5,0.981]
[1749633595372,0.1808,2764.6,2764.5,0.981]
[1749633595565,1.03798879,2764.6,2764.5,0.981]
[1749633595968,10.70823568,2764.6,2763.0,19.03324689]
[1749633596184,0.1808,2764.4,2763.7,11.778]
[1749633596401,0.85709354,2764.3,2763.8,13.73]
[1749633596553,0.85709354,2764.2,2763.8,13.73]
[1749633596890,0.1808,2763.9,2763.5,2.14]
[1749633597095,1.535,2764.2,2763.6,5.04851391]
[1749633597292,0.1808,2763.7,2763.6,4.711]
[1749633597590,0.1808,2763.7,2763.6,14.711]
[1749633599450,0.1808,2763.7,2763.6,10.981]
[1749633599653,0.1808,2763.7,2763.6,14.711]
[1749633600254,0.1808,2763.7,2763.6,15.04852427]
[1749633600461,0.1808,2763.7,2763.6,15.04852428]
[1749633600654,0.1808,2763.7,2763.6,14.711]
[1749633601215,0.1808,2763.7,2763.6,10.981]
[1749633601417,0.1808,2763.7,2763.6,0.981]
[1749633601618,1.7385,2763.7,2763.6,4.711]
[1749633602320,1.7385,2763.7,2763.6,0.981]
[1749633602483,2.91235,2763.7,2763.6,0.981]
[1749633602685,1.7385,2763.7,2763.6,0.981]
[1749633603283,1.7385,2763.7,2763.6,4.711]
[1749633603523,12.26427853,2763.7,2763.6,0.981]
[1749633603734,10.55,2763.6,2763.0,9.363]
[1749633604031,20.70657853,2763.7,2763.0,9.363]
[1749633604032,9.67024689,2763.2,2763.1,0.981]
[1749633604181,0.85553164,2763.2,2763.1,0.981]
[1749633604385,0.1808,2763.2,2763.1,0.981]
[1749633604981,0.1808,2763.2,2763.1,15.393]
[1749633606227,0.1808,2763.2,2763.1,15.75449365]
[1749633606393,0.1808,2763.2,2763.1,25.75449365]
[1749633606598,0.1808,2763.2,2763.1,26.29503003]
[1749633606793,0.85471018,2764.1,2763.2,10.0]
[1749633607098,0.85471018,2764.1,2763.1,26.09232944]
[1749633607099,0.85471018,2764.0,2763.4,30.0]
[1749633607295,1.5193,2764.2,2763.5,0.33782494]
[1749633607500,0.85465828,2764.1,2763.6,3.73]
[1749633607700,0.85465828,2764.0,2763.6,3.73]
[1749633607914,0.1808,2763.7,2763.6,3.73]
[1749633608104,0.1808,2763.7,2763.6,33.73]
[1749633608299,0.1808,2763.7,2763.6,43.73]
[1749633608493,1.5297,2764.4,2763.7,10.0]
[1749633608705,1.5297,2764.4,2763.9,30.0]
[1749633608912,1.5297,2764.4,2764.0,4.712]
[1749633609434,1.5297,2764.4,2764.0,34.712]
[1749633609435,0.1808,2764.1,2764.0,34.712]
[1749633609631,0.1808,2764.1,2764.0,17.239]
[1749633610511,0.1808,2764.1,2764.0,17.57681939]
[1749633610836,0.1808,2764.1,2764.0,17.57681937]
[1749633611330,0.1808,2764.1,2764.0,4.08743173]
[1749633611535,0.1808,2764.1,2764.0,31.31981958]
[1749633611712,0.1808,2764.1,2764.0,31.31998935]
[1749633612038,0.1808,2764.1,2764.0,31.31998633]
[1749633612355,0.1808,2764.1,2764.0,40.982]
[1749633612654,0.1808,2764.1,2764.0,44.712]
[1749633613152,0.1808,2764.1,2764.0,45.04995252]
[1749633613463,1.06923882,2765.0,2764.1,10.0]
[1749633613464,2.72363882,2765.0,2764.1,10.0]
[1749633613741,0.1808,2764.3,2764.2,44.06793381]
[1749633613950,0.1808,2764.3,2764.2,44.27067906]
[1749633614095,0.1808,2764.3,2764.2,43.73]
[1749633614291,0.1808,2764.3,2764.2,43.93274817]
[1749633614495,0.1808,2764.3,2764.2,43.73]
[1749633614709,0.1808,2764.3,2764.2,44.27066831]
[1749633614895,0.1808,2764.3,2764.2,44.06791808]
[1749633615118,0.1808,2764.3,2764.2,44.06791879]
[1749633615307,0.1808,2764.3,2764.2,45.04892258]
[1749633615631,0.1808,2764.3,2764.2,45.04892318]
[1749633615815,0.1808,2764.3,2764.2,45.04892341]
[1749633616020,0.1808,2764.3,2764.2,44.91375412]
[1749633616216,0.1808,2764.3,2764.2,23.92868622]
[1749633616416,0.1808,2764.3,2764.2,23.388]
[1749633616630,0.1808,2764.3,2764.2,23.72593786]
[1749633616833,0.1808,2764.3,2764.2,23.388]
[1749633617130,0.1808,2764.3,2764.2,19.304]
[1749633617522,0.1808,2764.3,2764.2,19.8447146]
[1749633617719,0.1808,2764.3,2764.2,19.304]
[1749633617920,0.1808,2764.3,2764.2,19.50676536]
[1749633618120,0.1808,2764.3,2764.2,19.64194204]
[1749633618315,0.1808,2764.3,2764.2,19.08394213]
[1749633618516,0.1808,2764.3,2764.2,18.94876675]
[1749633618714,0.1808,2764.3,2764.2,19.08394352]
[1749633618912,0.1808,2764.3,2764.2,19.28670959]
[1749633619110,0.1808,2764.3,2764.2,18.746]
[1749633619309,0.1808,2764.3,2764.2,18.94876432]
[1749633619510,0.1808,2764.3,2764.2,19.08394068]
[1749633619742,0.1808,2764.3,2764.2,18.94876583]
[1749633620035,0.1808,2764.3,2764.2,14.57570914]
[1749633620198,0.1808,2764.3,2764.2,16.99176778]
[1749633620533,0.1808,2764.3,2764.2,17.12695273]
[1749633620734,0.1808,2764.3,2764.2,17.12695294]
[1749633620937,0.1808,2764.3,2764.2,17.12695082]
[1749633621138,0.1808,2764.3,2764.2,17.12695076]
[1749633621322,0.1808,2764.3,2764.2,16.789]
[1749633621922,0.1808,2764.3,2764.2,16.99176432]
[1749633622125,0.1808,2764.3,2764.2,17.12694058]
[1749633622328,0.1808,2764.3,2764.2,16.789]
[1749633622642,0.1808,2764.3,2764.2,17.32970514]
[1749633622840,0.1808,2764.3,2764.2,16.99176397]
[1749633623041,0.1808,2764.3,2764.2,17.1269401]
[1749633623342,0.1808,2764.3,2764.2,26.35576361]
[1749633623541,0.09120132,2764.3,2764.2,26.153]
[1749633623718,1.5722,2765.2,2764.5,30.0]
[1749633623918,1.5722,2765.4,2764.8,30.0]
[1749633624226,0.85474829,2765.3,2765.0,30.0]
[1749633624418,1.5722,2765.4,2765.1,4.71]
[1749633624615,2.19942,2765.4,2765.1,5.36317206]
[1749633624942,1.06923882,2765.7,2765.4,10.0]
[1749633624943,1.6504,2765.7,2765.4,10.0]
[1749633625147,1.6504,2765.7,2765.3,30.0]
[1749633625148,1.6504,2765.7,2765.5,3.729]
[1749633625439,1.6504,2765.7,2765.1,1.63417206]
[1749633625440,1.6204,2766.1,2765.6,3.729]
[1749633625642,1.92815633,2766.0,2765.7,0.33853591]
[1749633625843,1.92815633,2766.0,2765.1,11.63417206]
[1749633625844,0.1808,2765.7,2765.3,10.0]
[1749633626043,1.6204,2766.1,2765.6,30.0]
[1749633626255,1.6204,2766.1,2765.1,0.65317206]
[1749633626256,9.67024689,2766.1,2765.1,0.65317206]
[1749633626431,0.1808,2765.5,2765.3,20.721]
[1749633626637,9.67024689,2765.8,2764.8,10.0]
[1749633626638,9.67024689,2765.8,2765.4,4.71]
[1749633626833,0.96702469,2765.7,2765.5,3.729]
[1749633627037,2.1829,2766.0,2765.5,3.729]
[1749633627222,0.1808,2765.6,2765.5,3.729]
[1749633627619,0.1808,2765.6,2765.5,13.729]
[1749633628319,0.1808,2765.6,2765.5,43.729]
[1749633631227,2.2056,2766.7,2765.6,10.0]
[1749633631430,0.85180931,2766.6,2766.0,10.0]
[1749633631755,0.85180931,2766.6,2765.7,3.728]
[1749633631756,0.55,2766.6,2766.1,13.089]
[1749633631921,0.55,2766.6,2766.2,0.981]
[1749633632260,0.22056,2766.5,2766.3,3.728]
[1749633632760,0.1808,2766.4,2766.3,3.728]
[1749633634458,0.1808,2766.4,2766.3,0.981]
[1749633635240,0.1808,2766.4,2766.3,10.34]
[1749633635652,0.1808,2766.4,2766.3,14.068]
[1749633635835,0.1808,2766.4,2766.3,14.067]
[1749633636863,0.1808,2766.4,2766.3,9.359]
[1749633637071,0.1808,2766.4,2766.3,44.067]
[1749633641786,7.0763046,2767.3,2766.3,44.067]
[1749633641944,0.1808,2766.4,2766.3,44.067]
[1749633643444,0.1808,2766.4,2766.3,22.07079844]
[1749633643645,0.1808,2766.4,2766.3,0.98]
[1749633643878,0.1808,2766.4,2766.3,40.98]
[1749633644690,0.1808,2766.4,2766.3,34.76300433]
[1749633644847,0.1808,2766.4,2766.3,43.726]
[1749633645243,0.1808,2766.4,2766.3,54.063]
[1749633647377,6.2351,2767.3,2766.3,54.063]
[1749633647378,6.2351,2767.3,2766.5,3.411]
[1749633647578,0.85250793,2767.2,2766.6,3.726]
[1749633647910,1.5351,2767.0,2766.6,3.726]
[1749633648127,1.5351,2767.0,2766.3,10.337]
[1749633648128,0.1808,2766.7,2766.3,9.357]
[1749633648280,1.5351,2767.0,2766.5,10.0]
[1749633648487,1.12053469,2766.9,2766.6,3.726]
[1749633648686,0.1808,2766.7,2766.6,3.726]
[1749633649814,0.1808,2766.7,2766.6,13.726]
[1749633650625,0.1808,2766.7,2766.6,43.726]
[1749633653006,0.1808,2766.7,2766.6,45.66833825]
[1749633655197,3.58004082,2768.4,2766.6,45.66833825]
[1749633655198,3.58004082,2768.4,2766.7,10.55]
[1749633655548,8.34849031,2769.3,2768.9,30.0]
[1749633655549,1.18840866,2769.3,2768.9,30.0]
[1749633655754,1.0,2769.3,2769.2,40.0]
[1749633656031,1.0,2769.3,2769.2,44.933]
[1749633656348,1.783768,2770.0,2769.4,10.0]
[1749633656558,0.1808,2769.5,2769.4,0.36588666]
[1749633656717,0.1808,2769.5,2769.4,4.932]
[1749633657416,0.1808,2769.5,2769.4,4.931]
[1749633658350,0.1808,2769.5,2769.4,4.929]
[1749633658847,0.1808,2769.5,2769.4,5.29040798]
[1749633659636,0.1808,2769.5,2769.4,1.062]
[1749633659958,1.5948,2769.4,2768.7,30.0]
[1749633660121,0.1808,2769.1,2768.9,10.0]
[1749633660316,1.5948,2769.4,2768.8,1.062]
[1749633660516,0.1808,2768.9,2768.8,31.062]
[1749633660718,0.1808,2768.9,2768.6,0.36811474]
[1749633660919,0.55,2769.1,2768.7,1.062]
[1749633661117,1.02202469,2769.0,2768.8,1.062]
[1749633661361,1.5896,2768.8,2768.0,0.64215091]
[1749633661562,1.5896,2768.8,2768.1,4.927]
[1749633661938,0.1808,2768.2,2768.1,34.927]
[1749633662143,0.1808,2768.2,2768.1,4.926]
[1749633662345,0.1808,2768.2,2767.8,10.0]
[1749633662666,1.5896,2768.8,2767.9,4.925]
[1749633662864,0.1808,2768.0,2767.9,34.925]
[1749633663230,0.1808,2768.0,2767.9,0.36209308]
[1749633663432,0.1808,2768.0,2767.9,1.062]
[1749633663663,0.36389,2768.0,2767.9,1.062]
[1749633664044,0.36389,2768.0,2767.9,1.42297528]
[1749633664244,0.1808,2768.0,2767.9,1.42297528]
[1749633664738,0.1808,2768.0,2767.5,10.0]
[1749633664947,0.1808,2768.0,2767.4,30.0]
[1749633665141,0.1808,2767.7,2767.6,30.0]
[1749633665532,0.1808,2767.7,2767.6,30.33287158]
[1749633665864,0.1808,2767.7,2767.6,30.33287089]
[1749633666063,0.1808,2767.7,2767.6,34.21598168]
[1749633666465,0.1808,2767.7,2767.6,44.21598168]
[1749633666959,0.1808,2768.0,2767.9,40.0]
[1749633667166,0.1808,2768.0,2767.9,43.858]
[1749633667866,0.1808,2768.0,2767.9,33.858]
[1749633668048,0.1808,2768.0,2767.9,34.19082322]
[1749633668229,0.1808,2768.0,2767.9,30.0]
[1749633668434,0.1808,2768.0,2767.9,9.38]
[1749633668651,0.1808,2768.0,2767.8,30.0]
[1749633668966,1.6117,2768.2,2767.9,4.918]
[1749633669330,0.1808,2768.0,2767.7,40.0]
[1749633669533,1.6117,2768.2,2767.8,4.917]
[1749633669770,1.6117,2768.2,2767.8,34.917]
[1749633669771,0.1808,2767.9,2767.8,34.917]
[1749633670175,0.1808,2767.9,2767.8,30.0]
[1749633670381,0.1808,2767.9,2767.8,34.916]
[1749633671295,0.1808,2767.9,2767.8,30.0]
[1749633671513,0.1808,2767.9,2767.8,24.68924873]
[1749633671675,0.1808,2767.9,2767.5,9.352]
[1749633672001,1.7162,2767.7,2767.6,1.062]
[1749633672295,2.88782,2767.7,2767.6,4.914]
[1749633672468,2.88782,2767.7,2767.6,5.2523078]
[1749633672684,2.88782,2767.7,2767.6,4.914]
[1749633673122,2.88782,2767.7,2767.6,5.25032114]
[1749633673290,2.88782,2767.7,2767.6,4.912]
[1749633673629,1.7162,2767.7,2767.6,4.912]
[1749633673776,0.1808,2767.7,2767.6,5.25029787]
[1749633673976,0.1808,2767.7,2767.6,4.912]
[1749633674389,0.1808,2767.7,2767.6,34.912]
[1749633674790,0.1808,2767.7,2767.6,35.25027316]
[1749633675005,0.1808,2767.7,2767.6,34.912]
[1749633675317,0.1808,2767.7,2767.6,35.25027297]
[1749633675522,0.1808,2767.7,2767.6,35.25027307]
[1749633675910,0.1808,2767.7,2767.6,35.24810772]
[1749633676221,0.1808,2767.7,2767.6,35.24810748]
[1749633676406,0.1808,2767.7,2767.6,35.24809506]
[1749633676593,11.98134689,2767.7,2767.6,25.9382078]
[1749633676925,0.55,2767.5,2766.8,30.0]
[1749633677085,1.5803,2767.6,2767.0,30.0]
[1749633677285,1.5803,2767.6,2767.2,10.0]
[1749633677616,1.5803,2767.6,2767.3,4.20215852]
[1749633677802,1.5368,2767.9,2767.4,0.33615299]
[1749633678007,1.5368,2767.9,2767.5,0.33614592]
[1749633678219,0.55,2767.8,2767.6,4.926]
[1749633678422,1.38948,2767.7,2767.6,1.062]
[1749633678830,2.91368,2767.7,2766.9,10.0]
[1749633679020,2.91368,2767.7,2766.7,11.29269588]
[1749633679021,0.55,2767.6,2767.0,4.925]
[1749633679232,0.55,2767.6,2766.7,11.29269588]
[1749633679233,0.55,2767.4,2766.7,9.71619588]
[1749633679433,0.20742,2767.3,2767.1,1.062]
[1749633679928,0.20742,2767.3,2767.2,3.863]
[1749633680143,0.1808,2767.3,2767.2,3.863]
[1749633680358,0.1808,2767.3,2767.2,4.1991859]
[1749633680653,0.1808,2767.3,2767.2,33.863]
[1749633680812,0.1808,2767.3,2767.2,34.19917037]
[1749633681002,0.1808,2767.3,2767.2,33.863]
[1749633682402,0.1808,2767.3,2767.2,5.926]
[1749633683000,0.1808,2767.3,2767.1,7.299]
[1749633683200,0.1808,2767.3,2767.2,4.921]
[1749633683414,1.5242,2767.5,2767.2,4.921]
[1749633683608,0.1808,2767.3,2767.2,4.921]
[1749633684411,0.1808,2767.3,2767.2,4.918]
[1749633684595,0.1808,2767.3,2767.2,1.062]
[1749633684802,0.1808,2767.3,2767.2,4.918]
[1749633685025,0.1808,2767.3,2767.2,1.062]
[1749633685201,0.4786288,2767.3,2767.2,1.062]
[1749633686434,0.4786288,2767.3,2767.2,4.917]
[1749633688210,0.4786288,2767.3,2766.7,0.35972052]
[1749633688415,0.2978288,2767.3,2766.8,34.905]
[1749633688633,0.1808,2766.9,2766.8,34.905]
[1749633688819,0.1808,2766.9,2766.8,35.2420098]
[1749633689003,0.1808,2766.9,2766.8,34.905]
[1749633689628,0.1808,2766.9,2766.8,35.24200963]
[1749633689831,0.1808,2766.9,2766.8,35.24200051]
[1749633690007,0.1808,2766.9,2766.8,35.239998]
[1749633690207,0.1808,2766.9,2766.8,35.24000059]
[1749633690423,0.1808,2766.9,2766.8,25.62980107]
[1749633690621,0.1808,2766.9,2766.8,15.81710618]
[1749633690932,0.1808,2766.9,2766.8,16.15410577]
[1749633691135,0.1808,2766.9,2766.8,10.91410618]
[1749633691353,0.1808,2766.9,2766.8,15.81410618]
[1749633691537,0.1808,2766.9,2766.8,16.15110597]
[1749633691699,0.1808,2766.9,2766.8,15.81410618]
[1749633692347,0.1808,2766.9,2766.8,16.15110458]
[1749633692552,0.1808,2766.9,2766.8,15.81410618]
[1749633693042,0.1808,2766.9,2766.8,16.15110253]
[1749633693244,0.1808,2766.9,2766.8,15.81410618]
[1749633693452,1.7717,2766.9,2766.8,5.23300065]
[1749633693610,1.7717,2766.9,2766.8,1.39300065]
[1749633693806,13.91589469,2766.9,2766.8,5.23500065]
[1749633694562,13.91589469,2766.9,2766.8,0.33700065]
[1749633694853,13.91589469,2766.9,2766.8,5.23400065]
[1749633695215,13.91589469,2766.9,2766.8,14.58800065]
[1749633696249,10.1808,2766.9,2766.8,14.58800065]
[1749633703692,10.1808,2766.9,2766.8,44.58800065]
[1749633704189,11.7402,2766.9,2766.8,10.74700065]
[1749633704391,11.7402,2766.9,2766.8,9.69100065]
[1749633704540,12.59686775,2766.9,2766.8,9.69100065]
[1749633704739,13.85655453,2766.9,2766.8,14.57200065]
[1749633705576,13.85655453,2766.9,2766.8,14.57100065]
[1749633706681,13.85655453,2766.9,2766.8,14.56900065]
[1749633707746,13.85655453,2766.9,2766.8,1.057]
[1749633708938,13.85655453,2766.9,2766.8,4.876]
[1749633709664,10.0,2766.8,2766.4,0.36400188]
[1749633709866,1.38565545,2766.8,2766.2,30.0]
[1749633710043,0.85702874,2766.7,2766.4,40.0]
[1749633710253,0.1808,2766.5,2766.4,30.0]
[1749633712968,0.1808,2766.5,2766.4,34.87]
[1749633713173,0.1808,2766.5,2766.4,31.057]
[1749633713372,0.1808,2766.5,2766.4,34.87]
[1749633713557,0.1808,2766.5,2766.4,30.0]
[1749633713761,0.1808,2766.5,2766.4,34.869]
[1749633714561,0.1808,2766.5,2766.4,30.0]
[1749633714763,0.1808,2766.5,2766.4,34.868]
[1749633715272,0.1808,2766.5,2766.4,44.223]
[1749633717853,0.1808,2766.5,2766.4,47.83780624]
[1749633718056,10.0,2766.9,2766.6,3.61447213]
[1749633718268,10.0,2766.9,2766.8,30.0]
[1749633718464,6.3253,2767.4,2766.8,30.0]
[1749633718669,1.25457177,2767.3,2767.0,10.0]
[1749633718983,10.3970021,2767.3,2767.1,3.807]
[1749633719156,10.3970021,2767.3,2767.2,1.029]
[1749633719360,11.4353567,2767.3,2767.2,1.029]
[1749633721417,10.5778021,2767.3,2767.2,1.029]
[1749633721990,0.1808,2767.3,2767.2,31.87222047]
[1749633722189,0.1808,2767.3,2767.2,31.029]
[1749633722356,1.5999,2768.2,2767.2,31.029]
[1749633722559,0.85727444,2768.1,2767.5,3.61334056]
[1749633722787,0.85727444,2768.1,2767.2,1.53476324]
[1749633722788,1.5999,2768.2,2767.7,30.0]
[1749633722991,1.5999,2768.2,2767.8,3.803]
[1749633723158,1.5125,2768.4,2767.8,3.803]
[1749633723360,0.1808,2767.9,2767.8,3.803]
[1749633723922,0.1808,2767.9,2767.8,4.14037247]
[1749633724203,0.1808,2767.9,2767.8,3.803]
[1749633724561,0.1808,2767.9,2767.8,37.41597781]
[1749633724763,0.1808,2767.9,2767.8,33.803]
[1749633725192,0.1808,2767.9,2767.8,34.1403506]
[1749633725391,0.1808,2767.9,2767.8,33.803]
[1749633726472,0.1808,2767.9,2767.8,37.75332326]
[1749633726682,0.1808,2767.9,2767.8,37.41597781]
[1749633726912,1.518,2768.6,2768.1,40.0]
[1749633727111,0.55,2768.9,2768.1,40.0]
[1749633727112,1.518,2768.8,2768.3,30.0]
[1749633727275,1.7248,2768.8,2768.4,3.798]
[1749633727477,0.1808,2768.3,2768.2,9.354]
[1749633727687,0.1808,2768.3,2768.2,44.181]
[1749633728571,0.1808,2768.3,2768.2,47.79345574]
[1749633729908,0.1808,2768.3,2768.2,44.181]
[1749633730108,0.1808,2768.3,2768.2,42.96645574]
[1749633730313,0.1808,2768.3,2768.2,48.12762244]
[1749633730511,0.1808,2768.3,2768.2,47.78945574]
[1749633731004,0.1808,2768.3,2768.2,48.12760266]
[1749633731311,0.1808,2768.3,2768.2,47.78945574]
[1749633731509,1.5162,2769.0,2768.4,3.61210003]
[1749633731712,10.0,2768.9,2768.5,3.792]
[1749633731913,10.0,2768.9,2768.6,10.33814081]
[1749633732212,5.04290103,2770.0,2768.8,30.0]
[1749633732213,1.6301,2769.3,2768.8,30.0]
[1749633732420,1.6301,2769.3,2768.7,3.791]
[1749633732421,1.6301,2769.3,2769.0,10.0]
[1749633732577,1.6301,2769.3,2769.1,4.819]
[1749633732995,0.1808,2769.2,2769.1,4.819]
[1749633733737,0.1808,2769.2,2769.1,5.15710318]
[1749633734016,0.1808,2769.2,2769.1,5.15710111]
[1749633734209,0.1808,2769.2,2769.1,4.819]
[1749633734406,0.1808,2769.2,2769.1,5.15710009]
[1749633734607,0.1808,2769.2,2769.1,5.15710008]
[1749633734806,0.1808,2769.2,2769.1,4.819]
[1749633735011,0.1808,2769.2,2769.1,1.36609939]
[1749633735207,0.1808,2769.2,2769.1,1.3660993]
[1749633735413,0.1808,2769.2,2769.1,1.028]
[1749633735414,0.36189,2769.2,2769.1,1.028]
[1749633735615,0.36189,2769.2,2769.1,1.36610012]
[1749633735802,0.36189,2769.2,2769.1,1.028]
[1749633736003,0.36189,2769.2,2769.1,1.36610086]
[1749633736325,0.36189,2769.2,2769.1,4.816]
[1749633738003,0.36189,2769.2,2769.1,4.81]
[1749633739429,0.36189,2769.2,2769.1,4.809]
[1749633739930,0.36189,2769.2,2769.1,4.808]
[1749633741144,0.36189,2769.2,2768.6,10.54512979]
[1749633741301,0.18109,2769.2,2769.1,1.028]
[1749633741502,0.18109,2769.2,2769.1,4.806]
[1749633741724,0.36189,2769.2,2769.1,4.806]
[1749633742115,0.36189,2769.2,2769.1,5.14411374]
[1749633742313,0.36189,2769.2,2769.1,4.806]
[1749633742532,0.36189,2769.2,2769.1,5.14411268]
[1749633742838,0.36189,2769.2,2769.1,4.806]
[1749633743133,0.36189,2769.2,2769.1,1.36611413]
[1749633743346,18.17958829,2769.2,2768.2,9.354]
[1749633743517,6.30819829,2768.7,2768.4,21.604]
[1749633743713,10.0,2768.6,2768.5,20.509174]
[1749633743917,10.0,2768.6,2768.5,20.171]
[1749633744124,10.1808,2768.6,2768.5,0.33817399]
[1749633744323,11.6832,2768.6,2768.5,0.33818529]
[1749633744536,13.33209983,2768.6,2768.5,4.802]
[1749633744914,13.33209983,2768.6,2768.5,5.14019252]
[1749633745120,13.33209983,2768.6,2768.5,4.802]
[1749633746003,13.33209983,2768.6,2768.5,5.14019065]
[1749633746204,13.33209983,2768.6,2768.5,5.14019063]
[1749633746432,13.33209983,2768.6,2768.5,5.14019279]
[1749633746646,1.6832,2768.6,2768.5,5.14019196]
[1749633746919,0.1808,2768.6,2768.5,35.30776324]
[1749633747547,0.1808,2768.6,2768.5,35.64591976]
[1749633747747,0.1808,2768.6,2768.5,34.802]
[1749633747935,0.1808,2768.6,2768.5,35.14015585]
[1749633748150,0.1808,2768.6,2768.5,34.802]
[1749633748328,0.1808,2768.6,2768.5,35.14015666]
[1749633748514,0.1808,2768.6,2768.5,34.802]
[1749633750623,0.1808,2768.6,2768.5,35.14015641]
[1749633750823,0.1808,2768.6,2768.5,35.14015584]
[1749633751028,0.1808,2768.6,2768.5,34.802]
[1749633751631,0.1808,2768.6,2768.5,35.14015571]
[1749633751838,0.1808,2768.6,2768.5,34.802]
[1749633752520,0.1808,2768.6,2768.5,35.14016009]
[1749633752720,0.1808,2768.6,2768.5,35.14016031]
[1749633753021,0.1808,2768.6,2768.5,34.802]
[1749633753825,0.1808,2768.6,2768.5,34.792]
[1749633757855,1.7299,2768.6,2768.3,30.0]
[1749633758059,1.7299,2768.6,2768.4,1.008]
[1749633758060,12.72209,2768.6,2768.4,1.008]
[1749633758261,1.5491,2768.6,2768.5,10.0]
[1749633758424,2.40814649,2768.6,2768.4,4.767]
[1749633758619,0.1808,2768.5,2768.4,14.767]
[1749633758946,0.1808,2768.5,2768.4,4.767]
[1749633759373,0.1808,2768.5,2768.2,9.354]
[1749633759692,0.85875323,2768.4,2768.3,4.766]
[1749633759977,0.1808,2768.4,2767.3,0.3608]
[1749633760130,0.1808,2768.4,2767.5,4.0769296]
[1749633760131,1.35379,2768.4,2767.5,4.0769296]
[1749633760335,1.17299,2768.4,2767.7,30.0]
[1749633760531,10.0,2768.5,2767.8,30.0]
[1749633760734,10.0,2768.6,2767.9,33.61278858]
[1749633761068,1.6007,2768.8,2768.1,30.0]
[1749633761268,1.6007,2768.8,2768.3,10.0]
[1749633761269,0.85864922,2768.7,2768.3,10.0]
[1749633761467,1.6007,2768.8,2768.4,3.758]
[1749633761468,0.24593492,2768.6,2768.4,3.758]
[1749633761865,0.1808,2768.5,2768.4,3.758]
[1749633762577,0.1808,2768.5,2767.8,30.0]
[1749633762795,1.5011,2768.5,2768.0,20.881]
[1749633762983,1.5011,2768.5,2768.2,10.0]
[1749633763182,11.9965072,2768.4,2768.3,1.008]
[1749633763384,23.26318437,2768.4,2768.3,1.008]
[1749633763582,23.44398437,2768.4,2768.3,1.008]
[1749633764153,1.5472,2768.3,2767.5,0.54656719]
[1749633764376,0.1808,2768.1,2767.6,4.764]
[1749633764562,1.5472,2768.3,2767.6,4.764]
[1749633764887,0.1808,2767.7,2767.6,4.764]
[1749633765083,0.1808,2767.7,2767.6,5.12516501]
[1749633765295,0.1808,2767.7,2767.6,1.008]
[1749633766388,0.1808,2767.7,2767.6,4.764]
[1749633766810,0.1808,2767.7,2767.6,35.2276163]
[1749633767911,0.1808,2767.7,2767.6,34.764]
[1749633768702,0.1808,2767.7,2767.6,35.13099927]
[1749633769205,11.61,2768.6,2767.6,45.51768789]
[1749633769404,0.1808,2767.8,2767.7,30.0]
[1749633769783,0.1808,2767.8,2767.7,23.903]
[1749633770183,0.1808,2767.8,2767.7,23.904]
[1749633770607,0.1808,2767.8,2767.7,19.143]
[1749633770898,0.1808,2767.8,2767.7,23.903]
[1749633774390,0.1808,2767.9,2767.8,30.0]
[1749633775196,0.1808,2767.9,2767.8,39.35]
[1749633775570,0.1808,2767.9,2767.8,42.96297781]
[1749633775905,0.1808,2768.0,2767.9,30.0]
[1749633776105,0.1808,2768.0,2767.9,33.749]
[1749633777867,0.1808,2768.0,2767.9,40.05883342]
[1749633778410,0.1808,2768.0,2767.9,33.749]
[1749633779215,0.1808,2768.0,2767.9,24.56979046]
[1749633779515,0.1808,2768.0,2767.9,34.738]
[1749633781208,0.1808,2768.0,2767.9,4.738]
[1749633781419,10.0,2768.6,2768.1,10.0]
[1749633781733,11.6448,2769.2,2768.3,30.0]
[1749633781940,16.3448,2769.2,2768.5,40.0]
[1749633782100,16.3448,2769.2,2768.6,3.744]
[1749633782294,16.3448,2769.2,2768.7,0.993]
[1749633782514,16.3448,2769.2,2768.8,3.743]
[1749633782713,0.1808,2768.9,2768.8,3.743]
[1749633782916,0.1808,2768.9,2768.8,33.743]
[1749633785534,1e-08,2768.9,2768.8,33.743]
[1749633788201,1e-08,2768.9,2768.8,0.993]
[1749633788398,1e-08,2768.9,2768.8,34.731]
[1749633788729,1e-08,2768.9,2768.8,35.06720088]
[1749633789139,1e-08,2768.9,2768.8,35.06720189]